[Event "European Womens-ch 2025"]
[Site "Rhodes"]
[Date "2025.04.05"]
[Round "6.64"]
[White "Mitraka, Chrysoula-Paraskevi"]
[Black "Saraci, Ndriqona"]
[Result "1-0"]
[Annotator "NA"]
[ECO "D36"]
[WhiteElo "1820"]
[BlackElo "1692"]
[PlyCount "63"]
[EventDate "2025.03.29"]
[EventType "swiss"]
[EventCountry "GRE"]
[SourceTitle "playchess.com"]
[Source "ChessBase"]
[SourceQuality "1"]
[TimeControl "40/5400+30:1800+30"]

1. d4 {[%emt 0:00:40]} Nf6 {[%emt 0:00:25]} 2. c4 {[%emt 0:00:25]} e6 {[%emt 0:00:06]} 3. Nc3 {[%emt 0:00:08]} d5 {[%emt 0:00:15]} 4. cxd5 {[%emt 0:02:52]} exd5 {[%emt 0:00:07]} 5. Bg5 {[%emt 0:00:10]} c6 {[%emt 0:01:03]} 6. Qc2 {[%emt 0:01:17]} Be7 {[%emt 0:00:33]} 7. e3 {[%emt 0:00:44]} Nbd7 {[%emt 0:01:33]} 8. Bd3 {[%emt 0:00:16]} Nh5 {[%emt 0:01:39]} 9. Bxe7 {[%emt 0:03:26]} Qxe7 {[%emt 0:00:07]} 10. Nge2 {[%emt 0:00:47]} g6 {[%emt 0:01:02]} 11. Rb1 {[%emt 0:04:52]} Nb6 {[%emt 0:01:28]} 12. b4 {[%emt 0:06:50]} Ng7 {[%emt 0:04:37]} 13. Ng3 {[%emt 0:07:58]} a6 {[%emt 0:03:03]} 14. a4 {[%emt 0:05:19]} Be6 {[%emt 0:04:54]} 15. Qe2 {[%emt 0:09:40]} O-O {[%emt 0:03:08]} 16. O-O {[%emt 0:02:28]} h5 {[%emt 0:03:27]} 17. a5 {[%emt 0:04:03]} Nd7 {[%emt 0:02:06]} 18. e4 {[%emt 0:10:03]} h4 {[%emt 0:06:19]} 19. Nh1 {[%emt 0:02:14]} h3 {[%emt 0:08:16]} 20. Ng3 {[%emt 0:12:19]} hxg2 {[%emt 0:00:33]} 21. Kxg2 {[%emt 0:00:15]} dxe4 {[%emt 0:04:03]} 22. Bxe4 {[%emt 0:03:49]} Qh4 {[%emt 0:02:51]} 23. Kg1 {[%emt 0:02:36]} Bh3 {[%emt 0:03:08]} 24. Bg2 {[%emt 0:02:32]} Bxg2 {[%emt 0:01:35]} 25. Kxg2 {[%emt 0:00:05]} Qxd4 {[%emt 0:00:49]} 26. Nce4 {[%emt 0:01:32]} Qe5 {[%emt 0:04:22]} 27. Rbd1 {[%emt 0:04:16]} Qc7 {[%emt 0:03:58]} 28. Rxd7 {[%emt 0:01:09]} Qc8 {[%emt 0:03:21]} 29. Nf6+ {[%emt 0:00:27]} Kh8 {[%emt 0:00:39]} 30. Qe3 {[%emt 0:00:28]} Nf5 {[%emt 0:04:49]} 31. Nxf5 {[%emt 0:00:24]} g5 {[%emt 0:00:25]} 32. Qh3# {[%emt 0:00:15]} 1-0

[Event "European Womens-ch 2025"]
[Site "Rhodes"]
[Date "2025.04.05"]
[Round "6.66"]
[White "Silva, Ana Ines Teixeira Da"]
[Black "Korinioti, Myrto"]
[Result "1-0"]
[Annotator "NA"]
[ECO "B22"]
[WhiteElo "1893"]
[BlackElo "1667"]
[PlyCount "79"]
[EventDate "2025.03.29"]
[EventType "swiss"]
[EventCountry "GRE"]
[SourceTitle "playchess.com"]
[Source "ChessBase"]
[SourceQuality "1"]
[TimeControl "40/5400+30:1800+30"]

1. e4 {[%emt 0:00:03]} c5 {[%emt 0:00:35]} 2. Nf3 {[%emt 0:00:09]} Nc6 {[%emt 0:00:14]} 3. c3 {[%emt 0:00:06]} Nf6 {[%emt 0:00:18]} 4. e5 {[%emt 0:00:13]} Nd5 {[%emt 0:00:15]} 5. Bc4 {[%emt 0:00:09]} Nb6 {[%emt 0:00:28]} 6. Bb3 {[%emt 0:00:05]} d5 {[%emt 0:00:46]} 7. exd6 {[%emt 0:00:06]} c4 {[%emt 0:00:09]} 8. Bc2 {[%emt 0:00:33]} Qxd6 {[%emt 0:00:13]} 9. O-O {[%emt 0:00:29]} Bg4 {[%emt 0:00:58]} 10. h3 {[%emt 0:00:18]} Bh5 {[%emt 0:00:11]} 11. Re1 {[%emt 0:00:31]} O-O-O {[%emt 0:00:41]} 12. b3 {[%emt 0:04:21]} Qf6 {[%emt 0:03:02]} 13. Be4 {[%emt 0:03:06]} Re8 {[%emt 0:39:28]} 14. Na3 {[%emt 0:07:02]} Bxf3 {[%emt 0:07:27]} 15. Qxf3 {[%emt 0:10:00]} Qxf3 {[%emt 0:04:01]} 16. Bxf3 {[%emt 0:00:32]} Na5 {[%emt 0:08:20]} 17. Nb5 {[%emt 0:09:05]} e5 {[%emt 0:22:37]} 18. Nxa7+ {[%emt 0:06:02]} Kb8 {[%emt 0:00:38]} 19. b4 {[%emt 0:08:20]} Kxa7 {[%emt 0:00:29]} 20. bxa5 {[%emt 0:00:06]} Nd7 {[%emt 0:00:55]} 21. Bd5 {[%emt 0:07:10]} Rc8 {[%emt 0:03:13]} 22. Re4 {[%emt 0:11:34]} Rc5 {[%emt 0:02:52]} 23. Bxf7 {[%emt 0:02:14]} Rxa5 {[%emt 0:01:46]} 24. Rxc4 {[%emt 0:02:22]} Nb6 {[%emt 0:00:55]} 25. Rg4 {[%emt 0:04:30]} h5 {[%emt 0:00:30]} 26. Rh4 {[%emt 0:03:43]} Nd7 {[%emt 0:01:14]} 27. Rxh5 {[%emt 0:03:45]} Rxh5 {[%emt 0:00:18]} 28. Bxh5 {[%emt 0:00:03]} e4 {[%emt 0:00:10]} 29. Bg6 {[%emt 0:01:36]} Nc5 {[%emt 0:00:17]} 30. d3 {[%emt 0:05:47]} exd3 {[%emt 0:00:47]} 31. Be3 {[%emt 0:00:12]} d2 {[%emt 0:00:39]} 32. Bxd2 {[%emt 0:01:16]} Nb3 {[%emt 0:00:16]} 33. Be3+ {[%emt 0:01:28]} Kb8 {[%emt 0:00:22]} 34. Rd1 {[%emt 0:02:03]} Ra4 35. a3 Rxa3 36. Rd4 Ra2 37. Rd8+ Kc7 38. Rxf8 Ra1+ 39. Kh2 Kd6 40. Rf7 {[%emt 0:03:00]} 1-0

[Event "European Womens-ch 2025"]
[Site "Rhodes"]
[Date "2025.04.05"]
[Round "6.67"]
[White "Revelioti, Eleni Nefeli"]
[Black "Lamprianou, Marianna"]
[Result "1/2-1/2"]
[Annotator "NA"]
[ECO "C50"]
[WhiteElo "1470"]
[BlackElo "1498"]
[PlyCount "35"]
[EventDate "2025.03.29"]
[EventType "swiss"]
[EventCountry "GRE"]
[SourceTitle "playchess.com"]
[Source "ChessBase"]
[SourceQuality "1"]
[TimeControl "40/5400+30:1800+30"]

1. e4 {[%emt 0:00:06]} e5 {[%emt 0:00:09]} 2. Nf3 {[%emt 0:00:16]} Nc6 {[%emt 0:00:12]} 3. Bc4 {[%emt 0:00:19]} Bc5 {[%emt 0:00:41]} 4. Nc3 {[%emt 0:00:25]} Nf6 {[%emt 0:00:55]} 5. d3 {[%emt 0:01:31]} h6 {[%emt 0:02:16]} 6. Be3 {[%emt 0:02:09]} Bb6 {[%emt 0:01:56]} 7. O-O {[%emt 0:00:32]} d6 {[%emt 0:01:20]} 8. h3 {[%emt 0:01:21]} O-O {[%emt 0:02:23]} 9. Re1 {[%emt 0:02:00]} Be6 {[%emt 0:02:12]} 10. Bb3 {[%emt 0:00:57]} Re8 {[%emt 0:02:17]} 11. Bxb6 {[%emt 0:23:15]} axb6 {[%emt 0:06:46]} 12. d4 {[%emt 0:01:30]} Bxb3 {[%emt 0:02:22]} 13. cxb3 {[%emt 0:00:17]} exd4 {[%emt 0:07:14]} 14. Nxd4 {[%emt 0:00:23]} Ne7 {[%emt 0:08:16]} 15. Re3 {[%emt 0:07:01]} Ng6 {[%emt 0:03:31]} 16. Qe2 {[%emt 0:11:38]} Ra5 {[%emt 0:04:10]} 17. Nf5 {[%emt 0:07:21]} Rae5 {[%emt 0:17:12]} 18. Re1 {[%emt 0:09:35]} 1/2-1/2